Cogmind - Beta 17.1 @@@ ROGUE MODE // 2026.09.23 @ 09:44:44 Player: Somberlain Result: Destroyed by P-80 Master with Gamma Rifle Performance ------------- Evolutions (8) 4000 Regions Visited (17) 3400 Robots Destroyed (115) 575 Value Destroyed (4690) 4690 Prototype IDs (39) 780 Alien Tech Used (0) 0 Bonus (1904) 1904 TOTAL SCORE: 15349 Bonus ------- High Alert Combat Kills 53 Follower Combat Kills 1716 Aligned with FarCom 300 Built Enhanced Grunts 300 Friendly Fire -465 Cogmind --------- Core Integrity 0/1450 Matter 5/300 Energy 100/100 System Corruption 6% Temperature Cool (0) Movement Core (50) Location -2/Testing Parts ------- > --- POWER (2) -------- (None) > --- PROPULSION (6) --- Myomer Exoskeleton > --- UTILITY (12) ----- (None) > --- WEAPON (3) ------- (None) > --- INVENTORY (5) ---- Coolant Network Long-range Terrain Scanner Experimental Core Analyzer Advanced Micro-nuke Launcher Peak State ------------ > --- POWER ------------ Antimatter Reactor Light Antimatter Reactor > --- PROPULSION ------- Enhanced Flexi-carbon Leg Enhanced Flexi-carbon Leg Enhanced Flexi-carbon Leg Biometal Leg > --- UTILITY ---------- Improved Cryofiber Web Large Storage Unit Trap Scanner Experimental Signal Interpreter Centrium Medium Armor Plating Experimental Thermal Shield Advanced Hardlight Generator Advanced Force Field Improved Hacking Suite Improved System Shield > --- WEAPON ----------- Phase Gun Advanced Variable Charge Gun Quantum Rifle > --- INVENTORY -------- Spiked Heavy Treads Enhanced Flexi-carbon Leg Advanced Power Amplifier Skeleton Box Recalibrator Heavy Beamcaster Nova Cannon Heavy Rocket Launcher [Rating: 131] Favorites ----------- Power Quantum Reactor Engine Heavy Deuterium Engine Power Core Enhanced Fission Core Reactor Quantum Reactor Propulsion Enhanced Flexi-carbon Leg Treads Spiked Heavy Treads Leg Enhanced Flexi-carbon Leg Wheel Centrium Wheel Flight Unit Field Propulsion Array Utility Hacking Suite Device Trap Scanner Storage Medium Storage Unit Processor Improved Terrain Scan Processor Hackware Hacking Suite Protection Centrium Medium Armor Plating Weapon Wave Gun Energy Gun Wave Gun Energy Cannon Plasma Cannon Ballistic Gun Assault Rifle Launcher Heavy Rocket Launcher Impact Weapon Powered Hammer Slashing Weapon Axe Piercing Weapon Spear Build | -11 -10 -10 -10 -9 -8 -7 -6 -5 -5 -5 -5 -4 -4 -4 -3 -2 -2 ------- Run | Yrd Mat Min Exi Min Mat Fac Fac Fac Ext Cet Arc Fac Upp Upp Res Res Tes Slots Evolved 16 | . . . . . 4 2 2 2 . . . 2 . . 2 2 . Power 1 | . . . . . . . . 1 . . . . . . . . . Propulsion 4 | . . . . . 1 . 1 . . . . . . . . 2 . Utility 10 | . . . . . 3 2 1 1 . . . 1 . . 2 . . Weapon 1 | . . . . . . . . . . . . 1 . . . . . Parts Attached 142 | 6 1 2 2 2 21 22 12 5 21 7 8 14 9 . 7 . 3 Power 16 | 1 . . 1 1 2 3 1 1 1 2 1 . 2 . . . . Engine 9 | 1 . . 1 . 2 3 1 . 1 . . . . . . . . Core 2 | . . . . 1 . . . 1 . . . . . . . . . Reactor 5 | . . . . . . . . . . 2 1 . 2 . . . . Propulsion 38 | 2 . . 1 . 5 2 6 1 5 1 . 6 3 . 4 . 2 Treads 6 | . . . . . 3 . . . . . . . 2 . 1 . . Leg 28 | 2 . . 1 . 2 2 6 1 5 1 . 5 1 . 1 . 1 Wheel 1 | . . . . . . . . . . . . 1 . . . . . Hover . | . . . . . . . . . . . . . . . . . . Flight 3 | . . . . . . . . . . . . . . . 2 . 1 Utility 45 | 1 1 . . . 8 6 1 1 13 1 4 5 2 . 2 . . Device 22 | . . . . . 5 3 1 1 7 . . 3 1 . 1 . . Storage 6 | 1 . . . . 1 1 . . 2 . . 1 . . . . . Processor 5 | . . . . . 2 . . . . . . 1 1 . 1 . . Hackware 10 | . 1 . . . . 2 . . 3 . 4 . . . . . . Protection 2 | . . . . . . . . . 1 1 . . . . . . . Artifact . | . . . . . . . . . . . . . . . . . . Weapon 43 | 2 . 2 . 1 6 11 4 2 2 3 3 3 2 . 1 . 1 Energy Gun 21 | . . 1 . . 2 5 2 2 2 1 3 2 1 . . . . Energy Cannon 7 | . . . . . 2 3 2 . . . . . . . . . . Ballistic Gun 6 | 2 . . . 1 . . . . . 2 . 1 . . . . . Ballistic Cannon . | . . . . . . . . . . . . . . . . . . Launcher 2 | . . . . . 1 . . . . . . . . . 1 . . Special Weapon . | . . . . . . . . . . . . . . . . . . Impact Weapon 2 | . . 1 . . . 1 . . . . . . . . . . . Slashing Weapon 1 | . . . . . . 1 . . . . . . . . . . . Piercing Weapon 4 | . . . . . 1 1 . . . . . . 1 . . . 1 Special Melee Weapon . | . . . . . . . . . . . . . . . . . . Unidentified Prototypes 15 | . . . . . . 2 2 2 1 3 . 1 . . 2 . 2 Corrupted Parts 3 | . . . . . . . . . . 3 . . . . . . . System Corruption 16 | . . . . . . . . . . 16 . . . . . . . Parts Lost 55 | . . . . . 3 9 . . 5 . . 6 8 . 20 1 3 Power 5 | . . . . . 1 1 . . . . . . 1 . 2 . . Propulsion 16 | . . . . . 1 3 . . 2 . . 2 . . 6 1 1 Utility 23 | . . . . . . 3 . . 3 . . 2 6 . 8 . 1 Weapon 11 | . . . . . 1 2 . . . . . 2 1 . 4 . 1 Highest Loss Streak 12 | . . . . . 2 8 . . 2 . . 3 4 . 12 1 3 To Critical Strikes 1 | . . . . . . . . . . . . . . . 1 . . Average Backups 9 | . 1 4 7 7 7 8 9 9 9 10 9 13 13 12 6 5 4 Power . | . . 1 1 . . . . . . . . 1 1 . . . . Propulsion . | . . 1 . . . . . . . . . . 4 5 1 . . Utility 3 | . . . 1 2 2 4 4 4 4 5 5 7 3 3 2 1 2 Weapon 2 | . . 2 3 3 2 2 2 2 3 3 2 2 2 3 2 4 2 Tool/Special . | . . . . . . . . . . . . . . . . . . Unused Backups 19 | . . . . . 2 2 3 . . . 1 . 1 1 3 . 6 Power . | . . . . . . . . . . . . . . . . . . Propulsion 2 | . . . . . . . 2 . . . . . . . . . . Utility 10 | . . . . . 2 1 1 . . . . . 1 . 2 . 3 Weapon 6 | . . . . . . 1 . . . . 1 . . . 1 . 3 Tool/Special 1 | . . . . . . . . . . . . . . 1 . . . Average Slot Usage (%) 86 | . 94 100 100 100 82 85 94 99 98 98 99 93 86 78 43 8 7 Engine 4 | . 14 14 14 10 6 5 6 5 6 2 . . . . . . . Core 1 | . . . . 3 2 . . 4 3 . . . . . . . . Reactor 3 | . . . . . . . . . . 8 11 9 9 10 3 . . Treads 2 | . . . . . 5 . . . . . . . 8 10 . . . Leg 15 | . 28 28 28 28 14 13 20 22 22 21 23 18 2 . 8 . 1 Device 12 | . . . . . 12 15 20 22 16 13 11 14 13 15 9 . . Storage 6 | . 14 14 14 14 9 7 6 5 5 5 5 5 5 5 1 . . Processor 8 | . . . . . 6 15 13 11 11 11 11 10 9 5 4 4 2 Hackware 12 | . 8 14 14 14 9 11 13 11 15 17 18 21 14 10 4 . . Protection 1 | . . . . . . . . . . 3 3 . 4 5 1 . . Energy Gun 6 | . . 4 14 14 2 5 5 6 9 2 8 12 8 10 4 . . Energy Cannon 2 | . . . . . 10 4 1 . . . . . . . . . . Ballistic Gun 2 | . 28 22 14 14 3 . . . . 8 2 . . . . . . Piercing Weapon 1 | . . . . . 1 1 4 4 . . . . 5 5 . . 1 Peak Build Rating 131 | 6 9 11 13 18 32 44 58 79 88 96 100 123 126 114 131 18 43 Average Rating 65 | 4 8 9 11 14 29 37 52 73 80 90 96 110 119 113 66 17 32 On Entrance 50 | . 6 9 10 13 18 32 36 58 79 75 96 96 123 114 113 18 11 Avg Prop Armor Cover (%) 19 | . . . . . . 6 . . . . . 10 . . 42 . 42 Naked Turns 6 | . . . . . . . . . . . . . . . . . 6 Heaviest Build 102 | 14 14 15 15 17 25 35 40 56 56 71 71 81 101 82 102 . 3 Greatest Support 150 | 20 20 20 20 20 66 50 74 84 98 83 83 112 150 150 150 7 16 Greatest Overweight (x) 4 | . . . . . 1 4 1 . . . . 4 1 . . . . Average Overweight (x) . | . . . . . . . . . . . . . . . . . . Largest Inventory Capacity 15 | 8 8 8 8 8 8 10 10 10 10 10 10 15 15 15 15 5 5 Average Capacity 10 | 7 8 8 8 8 8 9 10 10 10 10 10 14 15 15 9 5 5 Most Carried 15 | . 4 7 8 8 8 10 10 10 10 10 10 15 15 14 13 5 5 Average Carried 9 | . 1 4 7 7 7 8 9 9 9 10 9 13 14 13 7 4 4 Final Capacity 15 | 8 8 8 8 8 8 10 10 10 10 10 10 15 15 15 5 5 5 Final Carried 15 | . 4 6 8 7 8 10 10 10 10 10 10 15 14 13 5 5 5 Class Distribution -------------------- 28% | Scavenger-Mutant 16% | Hacker-Mutant 16% | Mutant 12% | Hacker-Assassin 9% | Scavenger-Skirmisher 6% | Hacker-Skirmisher 5% | Commander-Mutant Dominant Class ---------------- Mutant | -10/Materials Mutant | -10/Mines Scavenger-Mutant | -10/Exiles Scavenger-Mutant | -9/Mines Scavenger-Mutant | -8/Materials Hacker-Assassin | -7/Factory Hacker-Assassin | -6/Factory Hacker-Assassin | -5/Factory Hacker-Mutant | -5/Extension Scavenger-Mutant | -5/Cetus Scavenger-Mutant | -5/Archives Scavenger-Mutant | -4/Factory Hacker-Mutant | -4/Upper Caves Scavenger-Mutant | -4/Upper Caves Mutant | -3/Research Mutant | -2/Research Mutant | -2/Testing Resources | -11 -10 -10 -10 -9 -8 -7 -6 -5 -5 -5 -5 -4 -4 -4 -3 -2 -2 ----------- Run | Yrd Mat Min Exi Min Mat Fac Fac Fac Ext Cet Arc Fac Upp Upp Res Res Tes Matter Collected 2894 | 233 151 71 . 53 413 426 109 83 429 98 159 299 360 . 10 . . Remotely . | . . . . . . . . . . . . . . . . . . Salvage Created 5193 | . 154 167 . 43 640 446 109 280 1747 142 222 166 801 . 276 . . Parts 219 | . 8 12 . 2 44 19 5 13 37 5 17 2 29 . 26 . . Haulers Intercepted 2 | . . . . . . . . . 2 . . . . . . . . Recyclers Shooed 3 | . . . . . . . . 1 . . . 2 . . . . . Parts Field Recycled . | . . . . . . . . . . . . . . . . . . Retrieved Matter . | . . . . . . . . . . . . . . . . . . Parts Self-Destructed 29 | . . . . . . . . . . . . . 29 . . . . Prevented 1 | . . . . . . . . . . . . . 1 . . . . Parts Restored . | . . . . . . . . . . . . . . . . . . Kills | -11 -10 -10 -10 -9 -8 -7 -6 -5 -5 -5 -5 -4 -4 -4 -3 -2 -2 ------- Run | Yrd Mat Min Exi Min Mat Fac Fac Fac Ext Cet Arc Fac Upp Upp Res Res Tes Combat Hostiles Destroyed 78 | . 3 6 . 1 18 8 2 2 13 1 . 3 12 . 9 . . Melee 10 | . . . . . . 3 . . . . . . 7 . . . . Guns 41 | . 3 6 . 1 9 2 1 2 10 . . 3 3 . 1 . . Cannons 6 | . . . . . 4 1 1 . . . . . . . . . . AOE 15 | . . . . . 5 . . . . . . . 2 . 8 . . Classes Destroyed 15 | . 2 1 . . 5 3 . 1 1 . . . 1 . 1 . . Worker 7 | . . . . . . 1 . . 2 . . . . . 4 . . Builder 4 | . . . . . 1 . . 1 . . . . . . 2 . . Tunneler 1 | . . . . . . . . . . . . . . . 1 . . Hauler 2 | . . . . . . . . . 2 . . . . . . . . Recycler 5 | . . . . . . . . 1 4 . . . . . . . . Mechanic 1 | . . . . . 1 . . . . . . . . . . . . Operator 10 | . 1 . . . . 2 . . . . 7 . . . . . . Watcher 5 | . . . . . 4 . 1 . . . . . . . . . . Swarmer 15 | . . 3 . . 9 . . . . . . . . . 3 . . Grunt 25 | . 3 3 . 1 2 2 . 1 4 . . . 5 . 4 . . Duelist 2 | . . . . . . 2 . . . . . . . . . . . Sentry 15 | . . . . . 6 . . . 9 . . . . . . . . Hunter 8 | . . . . . 1 1 . 1 . . . 1 2 . 2 . . Programmer 8 | . . . . . . 3 2 . . . . 2 1 . . . . Cetus Guard 1 | . . . . . . . . . . 1 . . . . . . . Thug 1 | . . . . . . . . . . . . . 1 . . . . Savage 4 | . . . . . . . . . . . . . 4 . . . . Butcher 1 | . . . . . . . . . . 1 . . . . . . . Best Kill Streak 15 | . 2 3 . 1 9 3 1 4 3 1 2 2 3 . 15 . . Combat Bots Only 8 | . 2 3 . 1 7 3 1 2 3 1 . 2 3 . 8 . . Max Kills in Single Turn 4 | . 1 1 . 1 3 1 1 2 1 1 1 1 1 . 4 . . Gunslinging . | . . . . . . . . . . . . . . . . . . Exploded 2 | . . . . . 2 . . . . . . . 1 . 2 . . Melee 1 | . . . . . . 1 . . . . . . 1 . . . . Uniques/NPCs Destroyed . | . . . . . . . . . . . . . . . . . . Combat | -11 -10 -10 -10 -9 -8 -7 -6 -5 -5 -5 -5 -4 -4 -4 -3 -2 -2 -------- Run | Yrd Mat Min Exi Min Mat Fac Fac Fac Ext Cet Arc Fac Upp Upp Res Res Tes Hostile Shots Fired 1099 | . 25 18 . . 117 71 8 9 140 6 4 66 129 1 318 20 167 Missed 371 | . 9 7 . . 28 13 4 4 53 . 3 15 29 . 134 10 62 Hits 728 | . 16 11 . . 89 58 4 5 87 6 1 51 100 1 184 10 105 Melee 33 | . . . . . . 23 . . . . . . 7 1 2 . . Projectile 695 | . 16 11 . . 89 35 4 5 87 6 1 51 93 . 182 10 105 Critical Strikes 51 | . . . . . 2 9 . . 4 1 . 2 12 . 17 . 4 Part Disruptions 3 | . . . . . . . . . . . . 1 1 . 1 . . Damage Taken 14078 | . 200 96 . . 1027 1401 62 97 1978 185 28 1204 2073 . 3224 225 2278 Core 4107 | . 18 28 . . 155 410 . . 432 52 . 271 304 . 985 199 1253 Absorbed by Shields 379 | . . . . . . . . . . . . . 216 . 163 . . Reduced by Siege Mode 113 | . . . . . . . . . . . . . 113 . . . . Ignored by Resistances 132 | . . . . . . . . . . . . . . . 132 . . Regen/Repaired (Parts) 356 | . . . . . 120 96 57 . . . . 83 . . . . . Core Remaining (%) 64 | 100 . . . 81 71 41 100 . . . 51 . . 50 24 . . Volleys Fired 334 | . 19 13 . 1 60 22 10 9 85 9 43 23 20 2 18 . . Largest 3 | . 2 2 . 2 2 2 2 2 2 2 2 3 3 2 2 . . Hottest 282 | . 40 85 . 93 135 160 160 162 162 162 188 282 262 168 279 . . Shots Fired 656 | . 38 26 . 2 115 37 19 17 170 20 82 63 42 4 21 . . Gun 567 | . 38 26 . 2 77 16 13 17 170 20 82 63 32 4 7 . . Cannon 58 | . . . . . 33 19 6 . . . . . . . . . . Launcher 31 | . . . . . 5 2 . . . . . . 10 . 14 . . Special . | . . . . . . . . . . . . . . . . . . Kinetic 133 | . 38 20 . 1 42 . . . . 2 22 8 . . . . . Thermal 489 | . . 6 . 1 65 35 19 17 170 18 60 55 32 4 7 . . Explosive 31 | . . . . . 5 2 . . . . . . 10 . 14 . . Electromagnetic 3 | . . . . . 3 . . . . . . . . . . . . Robot Hit Streak 17 | . 8 9 . 4 11 10 8 5 17 11 5 10 14 1 2 . . Robot Miss Streak 8 | . 2 5 . . 8 1 2 1 8 2 7 5 3 2 3 . . Penetration Max 1 | . . . . . . . . . . . 1 . . . . . . Secondary Targets 5 | . 1 . . . 3 . . . 1 . . . . . . . . Max Gunslinging Chain 1 | . 1 . . . 1 . . . 1 . . . . . . . . Shots Hit Robots 468 | . 26 14 . 2 65 38 11 12 124 15 40 40 67 1 6 . 7 Core Hits 222 | . 9 7 . 1 32 14 5 8 49 6 16 8 32 . 34 . 1 Critical Kills . | . . . . . . . . . . . . . . . . . . Critical Parts Destroyed 4 | . . . . . . 2 . . . . 2 . . . . . . Critical Strikes 20 | . . . . . . 2 1 . 9 . 2 . 4 . . . 2 Burn 11 | . . . . . . . 1 . 9 . . . 1 . . . . Destroy 2 | . . . . . . . . . . . 2 . . . . . . Smash 2 | . . . . . . 2 . . . . . . . . . . . Impale 5 | . . . . . . . . . . . . . 3 . . . 2 Melee Attacks 147 | . . 8 . . 7 40 11 5 4 . . . 53 . 5 . 14 Impact 21 | . . 8 . . . 13 . . . . . . . . . . . Slashing 1 | . . . . . . 1 . . . . . . . . . . . Piercing 125 | . . . . . 7 26 11 5 4 . . . 53 . 5 . 14 Sneak Attacks 3 | . . . . . . 1 . . 1 . . . 1 . . . . Combat Hostiles 1 | . . . . . . . . . . . . . 1 . . . . Follow-up Attacks 3 | . . . . . . 1 . . . . . . 2 . . . . Damage Inflicted 15800 | . 346 182 . 37 1824 1175 292 365 3193 410 1276 1363 2392 21 2634 . 290 Guns 9010 | . 346 182 . 37 721 281 160 339 3050 410 1276 1363 694 21 130 . . Cannons 963 | . . . . . 456 375 132 . . . . . . . . . . Explosions 3833 | . . . . . 647 93 . . . . . . 596 . 2497 . . Melee 1975 | . . . . . . 426 . 26 143 . . . 1102 . . . 278 Ramming 19 | . . . . . . . . . . . . . . . 7 . 12 Kinetic 1557 | . 346 121 . 20 375 . . . . 50 477 168 . . . . . Thermal 8384 | . . 61 . 17 770 656 292 339 3050 360 799 1195 694 21 130 . . Explosive 3833 | . . . . . 647 93 . . . . . . 596 . 2497 . . Electromagnetic 32 | . . . . . 32 . . . . . . . . . . . . Impact 174 | . . . . . . 174 . . . . . . . . . . . Slashing 32 | . . . . . . 32 . . . . . . . . . . . Piercing 1769 | . . . . . . 220 . 26 143 . . . 1102 . . . 278 Highest Corruption 30 | . . . . . . 3 3 . . 16 16 9 17 17 30 . 6 Average Corruption 9 | . . . . . . 1 2 . . 15 16 2 10 17 27 . 2 Corruption Purged . | . . . . . . . . . . . . . . . . . . Corruption Blocked . | . . . . . . . . . . . . . . . . . . Effects 166 | . . . . . . 12 13 . . 9 19 7 67 14 25 . . Message Errors 35 | . . . . . . 2 4 . . 1 . 3 21 1 3 . . Matter Fused 44 | . . . . . . 6 5 . . 3 10 . 11 7 2 . . Heat Flow Errors 17 | . . . . . . . 1 . . 1 1 1 8 . 5 . . Energy Discharges 17 | . . . . . . 1 1 . . 2 2 . 8 3 . . . Parts Rejected 3 | . . . . . . . . . . . . 1 1 . 1 . . Parts Fused 3 | . . . . . . . . . . . . . 3 . . . . Data Loss (minor) 12 | . . . . . . . . . . . 1 2 5 1 3 . . Data Loss (major) 10 | . . . . . . 1 . . . . 1 . 5 2 1 . . Misfires 6 | . . . . . . . 2 . . 1 . . 3 . . . . Alerts 4 | . . . . . . 1 . . . 1 . . 2 . . . . Misdirections 10 | . . . . . . . . . . . . . . . 10 . . Weapon Failures 5 | . . . . . . 1 . . . . 4 . . . . . . Overload Shots 3 | . . . . . . . . . . . . . . . 3 . . Overflow Damage 411 | . . . . . . 128 . . . . . . 68 . 203 . 12 Projectiles 34 | . . . . . . 34 . . . . . . . . . . . Explosions 244 | . . . . . . 31 . . . . . . 10 . 203 . . Melee 133 | . . . . . . 63 . . . . . . 58 . . . 12 Knockbacks . | . . . . . . . . . . . . . . . . . . Impact . | . . . . . . . . . . . . . . . . . . Kinetic . | . . . . . . . . . . . . . . . . . . Secondary . | . . . . . . . . . . . . . . . . . . Self-Inflicted Damage 111 | . . . . . . 26 . . . . . . . . 80 . 5 Shots 3 | . . . . . . 1 . . . . . . . . 2 . . Rammed 9 | . . . . . . . . . . . . . . . 6 . 3 Targets Rammed 9 | . . . . . . . . . . . . . . . 6 . 3 Kicked . | . . . . . . . . . . . . . . . . . . Crushed . | . . . . . . . . . . . . . . . . . . Highest Temperature 350 | . 8 64 . 33 210 300 228 342 350 . 145 306 299 198 234 . . Average Temperature 99 | . 3 36 . 20 88 86 79 122 145 . 111 99 108 98 95 . . Received Heat Transfer 1808 | . 111 24 . . 207 153 . 18 423 . . 60 314 . 390 54 54 Effects 5 | . . . . . 1 . . . 2 . . . 2 . . . . Energy Bleed 3 | . . . . . 1 . . . 2 . . . . . . . . Interference 2 | . . . . . . . . . . . . . 2 . . . . Siege Activations 5 | . . . . . . . . . . . . . 5 . . . . Total Turns 131 | . . . . . . . . . . . . . 131 . . . . Longest Duration 58 | . . . . . . . . . . . . . 58 . . . . Martial Activations . | . . . . . . . . . . . . . . . . . . Shielding Activations . | . . . . . . . . . . . . . . . . . . Robots Disrupted . | . . . . . . . . . . . . . . . . . . Combat Hostiles . | . . . . . . . . . . . . . . . . . . Robots Corrupted 2 | . . . . . . 2 . . . . . . . . . . . Combat Hostiles 2 | . . . . . . 2 . . . . . . . . . . . Parts Fried 1 | . . . . . . 1 . . . . . . . . . . . Impact Corruptions 3 | . . . . . . 3 . . . . . . . . . . . Robots Melted 4 | . . . . . . . . . 3 1 . . . . . . . Combat Hostiles 4 | . . . . . . . . . 3 1 . . . . . . . Parts Melted 44 | . . . . . 6 4 4 . 24 3 1 1 1 . . . . Heat Transferred 13212 | . . 148 . 37 1432 1094 535 518 5328 555 1036 1406 962 37 124 . . Parts Sabotaged . | . . . . . . . . . . . . . . . . . . Parts Stolen 1 | . . . . . . . . . . . . . . 1 . . . Parts Stripped . | . . . . . . . . . . . . . . . . . . Power Chain Reactions . | . . . . . . . . . . . . . . . . . . Alert | -11 -10 -10 -10 -9 -8 -7 -6 -5 -5 -5 -5 -4 -4 -4 -3 -2 -2 ------- Run | Yrd Mat Min Exi Min Mat Fac Fac Fac Ext Cet Arc Fac Upp Upp Res Res Tes Maximum Alert Level 2 | . . . . . 1 . . . 2 1 1 2 . . 2 . . Low Security (%) 77 | 100 100 100 . 100 61 100 100 100 83 32 69 32 . . 54 100 100 Level 1 15 | . . . . . 38 . . . 16 67 30 1 . . 42 . . Level 2 6 | . . . . . . . . . . . . 66 . . 2 . . Level 3 . | . . . . . . . . . . . . . . . . . . Level 4 . | . . . . . . . . . . . . . . . . . . Level 5 . | . . . . . . . . . . . . . . . . . . High Security . | . . . . . . . . . . . . . . . . . . Max Security . | . . . . . . . . . . . . . . . . . . Peak Influence 652 | . 40 76 . 20 343 118 31 55 428 291 221 652 . . 401 192 104 Initial 237 | . . 11 . . . 74 11 . 21 237 63 53 . . . 192 94 Average 119 | . 13 28 . 1 167 19 3 7 101 224 178 401 . . 163 184 77 Influence Increases 5265 | . 85 160 . 30 664 346 105 111 1051 142 330 1138 235 . 672 16 180 Destroy 0b10 Robot/C 2260 | . 60 120 . 20 360 160 40 40 520 80 80 440 160 . 180 . . Destroy 0b10 Robot/NC 235 | . 5 . . . 30 15 5 15 65 5 35 25 . . 35 . . Destroy Leader 392 | . 20 10 . 10 108 40 22 12 36 . . 84 30 . 20 . . Allied During Kill 936 | . . . . . . . . 5 352 57 115 407 . . . . . Successful Hack 154 | . . . . . 17 33 14 20 24 . . 6 . . . 16 24 Disable Machine 300 | . . . . . 60 45 15 15 . . 60 30 . . 15 . 60 Destroy Structure 388 | . . . . . 59 38 9 4 24 . 40 86 . . 122 . 6 Partial Spotted 30 | . . . . . . . . . . . . . . . 30 . . Lose Combat Pursuer 570 | . . 30 . . 30 15 . . 30 . . 60 45 . 270 . 90 Influence Decreases 5161 | . 55 155 35 30 500 486 129 66 671 408 334 683 845 . 329 191 244 Entered New Map 1018 | . . 19 35 . . 90 13 . 24 188 96 102 226 . . 151 74 Time Decay 3377 | . 55 136 . 30 470 361 116 66 468 160 198 418 519 . 210 30 140 Lost Part 397 | . . . . . 30 35 . . 50 . . 43 80 . 119 10 30 Lost Ally 340 | . . . . . . . . . 100 60 40 120 20 . . . . Purge Threat 29 | . . . . . . . . . 29 . . . . . . . . Squads Dispatched 27 | . 1 . . . 1 5 3 2 . . . 4 . . 5 2 4 Investigation 3 | . . . . . . . . . . . . . . . . 1 2 Extermination 11 | . . . . . . 3 3 . . . . 2 . . 2 . 1 Reinforcement 11 | . 1 . . . . 2 . 1 . . . 2 . . 3 1 1 Assault . | . . . . . . . . . . . . . . . . . . Garrison 2 | . . . . . 1 . . 1 . . . . . . . . . Intercept . | . . . . . . . . . . . . . . . . . . Searches Triggered . | . . . . . . . . . . . . . . . . . . Construction Impeded 2 | . . . . . . . . . . . . 1 . . 1 . . Haulers Reinforced 1 | . . . . . . . . 1 . . . . . . . . . Active Scanning Responses . | . . . . . . . . . . . . . . . . . . Cargo Convoy Interrupts . | . . . . . . . . . . . . . . . . . . Stealth | -11 -10 -10 -10 -9 -8 -7 -6 -5 -5 -5 -5 -4 -4 -4 -3 -2 -2 --------- Run | Yrd Mat Min Exi Min Mat Fac Fac Fac Ext Cet Arc Fac Upp Upp Res Res Tes Distress Signals 16 | . . 1 . . 5 . . . 1 1 . 2 . . 4 . 2 Communications Jammed . | . . . . . . . . . . . . . . . . . . Distress Signals . | . . . . . . . . . . . . . . . . . . Times Spotted 242 | . 4 8 . 1 35 15 4 3 35 5 28 14 14 2 51 7 16 Peak Tracking Total 14 | . 2 3 . 2 8 5 1 1 4 5 2 5 4 1 14 7 10 Tactical Retreats 21 | . . 2 . . 1 1 . . 2 . . 2 2 . 9 . 2 Traps | -11 -10 -10 -10 -9 -8 -7 -6 -5 -5 -5 -5 -4 -4 -4 -3 -2 -2 ------- Run | Yrd Mat Min Exi Min Mat Fac Fac Fac Ext Cet Arc Fac Upp Upp Res Res Tes Traps Triggered 6 | . . . . . . 2 . . 1 . . . . . . . 3 Indirectly . | . . . . . . . . . . . . . . . . . . Trap Hack Attempts . | . . . . . . . . . . . . . . . . . . Triggered . | . . . . . . . . . . . . . . . . . . Disarmed . | . . . . . . . . . . . . . . . . . . Reprogrammed . | . . . . . . . . . . . . . . . . . . Reused . | . . . . . . . . . . . . . . . . . . Traps Extracted . | . . . . . . . . . . . . . . . . . . Installed . | . . . . . . . . . . . . . . . . . . Triggered . | . . . . . . . . . . . . . . . . . . Machines | -11 -10 -10 -10 -9 -8 -7 -6 -5 -5 -5 -5 -4 -4 -4 -3 -2 -2 ---------- Run | Yrd Mat Min Exi Min Mat Fac Fac Fac Ext Cet Arc Fac Upp Upp Res Res Tes Machines Disabled 22 | . . . . . 4 3 1 1 2 . 4 2 . . 1 . 4 Max in Single Turn 1 | . . . . . 1 1 1 1 1 . 1 1 . . 1 . 1 Garrison Access 3 | . . . . . 1 1 . . . . . 1 . . . . . Machines Repaired . | . . . . . . . . . . . . . . . . . . Machines Dismantled . | . . . . . . . . . . . . . . . . . . Machines Sabotaged . | . . . . . . . . . . . . . . . . . . Overloaded Fab Kills . | . . . . . . . . . . . . . . . . . . Hacking | -11 -10 -10 -10 -9 -8 -7 -6 -5 -5 -5 -5 -4 -4 -4 -3 -2 -2 --------- Run | Yrd Mat Min Exi Min Mat Fac Fac Fac Ext Cet Arc Fac Upp Upp Res Res Tes Machines Accessed 47 | . . . 2 1 9 11 5 2 5 . . 4 1 . 4 1 2 Terminals 25 | . . . . . 6 7 2 1 5 . . 1 . . 1 1 1 Fabricators 4 | . . . . . . . 1 . . . . . . . 3 . . Repair Stations 6 | . . . . . 1 1 2 . . . . 2 . . . . . Recycling Units 3 | . . . . . 1 2 . . . . . . . . . . . Scanalyzers 2 | . . . . . . . . 1 . . . . . . . . 1 Garrison Access 3 | . . . . . 1 1 . . . . . 1 . . . . . Total Hacks 118 | . . . 2 1 22 31 12 6 17 . . 11 1 . 8 2 5 Successful 57 | . . . 2 1 10 16 5 3 9 . . 7 1 . 1 1 1 Failed 60 | . . . . . 12 15 7 3 7 . . 4 . . 7 1 4 Catastrophic 18 | . . . . . 2 4 2 1 1 . . 1 . . 3 1 3 Database Lockouts 1 | . . . . . . . . . 1 . . . . . . . . Manual 66 | . . . 1 . 17 21 5 3 16 1 . 2 . . . . . Terminals 72 | . . . . . 17 21 5 3 17 . . 2 . . 2 2 3 Fabricators 8 | . . . . . . . 2 . . . . . . . 6 . . Repair Stations 21 | . . . . . 2 6 5 . . . . 8 . . . . . Recycling Units 3 | . . . . . 1 2 . . . . . . . . . . . Scanalyzers 5 | . . . . . . . . 3 . . . . . . . . 2 Garrison Access 5 | . . . . . 2 2 . . . . . 1 . . . . . Terminal Hacks 13 | . . . 2 1 1 2 . . 5 . . . 1 . . 1 . Record 1 | . . . 1 . . . . . . . . . . . . . . Robot Schematic 1 | . . . . . . . . . 1 . . . . . . . . Robot Analysis 2 | . . . . . . 1 . . 1 . . . . . . . . Open Door 2 | . . . . 1 . . . . . . . . 1 . . . . Branch Access Points 1 | . . . . . . . . . . . . . . . . 1 . Terminal Index 3 | . . . . . 1 1 . . 1 . . . . . . . . Unreport Threat 1 | . . . . . . . . . 1 . . . . . . . . Zone Layout 1 | . . . . . . . . . 1 . . . . . . . . Proto ID Catalog 1 | . . . 1 . . . . . . . . . . . . . . Fabricator Hacks 2 | . . . . . . . 1 . . . . . . . 1 . . Network Status 1 | . . . . . . . 1 . . . . . . . . . . Load Schematic 1 | . . . . . . . . . . . . . . . 1 . . Repair Station Hacks 15 | . . . . . 2 6 2 . . . . 5 . . . . . Scan Component 8 | . . . . . 1 3 1 . . . . 3 . . . . . Repair 7 | . . . . . 1 3 1 . . . . 2 . . . . . Recycling Unit Hacks 1 | . . . . . . 1 . . . . . . . . . . . Retrieve Components 1 | . . . . . . 1 . . . . . . . . . . . Scanalyzer 3 | . . . . . . . . 2 . . . . . . . . 1 Insert Component 2 | . . . . . . . . 1 . . . . . . . . 1 Retrieve Study 1 | . . . . . . . . 1 . . . . . . . . . Garrison Access Hacks 3 | . . . . . 1 1 . . . . . 1 . . . . . Seal Access 3 | . . . . . 1 1 . . . . . 1 . . . . . Unauthorized Hacks 20 | . . . . . 6 6 2 1 4 . . 1 . . . . . Terminals 20 | . . . . . 6 6 2 1 4 . . 1 . . . . . Assimilate 3 | . . . . . 1 2 . . . . . . . . . . . Botnet 13 | . . . . . 3 4 1 1 3 . . 1 . . . . . Operators 4 | . . . . . 2 . 1 . 1 . . . . . . . . Fabricators . | . . . . . . . . . . . . . . . . . . Repair Stations . | . . . . . . . . . . . . . . . . . . Recycling Units . | . . . . . . . . . . . . . . . . . . Scanalyzers . | . . . . . . . . . . . . . . . . . . Garrison Access . | . . . . . . . . . . . . . . . . . . Data Cores Recovered . | . . . . . . . . . . . . . . . . . . Used . | . . . . . . . . . . . . . . . . . . Hacking Detections 36 | . . . . . 8 10 4 2 4 . . 1 . . 4 1 2 Full Trace Events 2 | . . . . . . . . . . . . . . . . 1 1 Feedback Events . | . . . . . . . . . . . . . . . . . . Feedback Blocked . | . . . . . . . . . . . . . . . . . . Robot Schematics Acquired 1 | . . . . . . . . . 1 . . . . . . . . Robots Built . | . . . . . . . . . . . . . . . . . . Authchips . | . . . . . . . . . . . . . . . . . . Time . | . . . . . . . . . . . . . . . . . . Total Robot Build Rating . | . . . . . . . . . . . . . . . . . . Part Schematics Acquired . | . . . . . . . . . . . . . . . . . . Parts Built . | . . . . . . . . . . . . . . . . . . Authchips . | . . . . . . . . . . . . . . . . . . Time . | . . . . . . . . . . . . . . . . . . Total Part Build Rating . | . . . . . . . . . . . . . . . . . . Part Studies Acquired 1 | . . . . . . . . 1 . . . . . . . . . Parts Repaired 6 | . . . . . 1 3 1 . . . . 1 . . . . . Time 361 | . . . . . 44 132 70 . . . . 115 . . . . . Parts Recycled . | . . . . . . . . . . . . . . . . . . Recycled Matter . | . . . . . . . . . . . . . . . . . . Retrieved Matter . | . . . . . . . . . . . . . . . . . . Retrieved Components 3 | . . . . . . 3 . . . . . . . . . . . Parts Scanalyzed 1 | . . . . . . . . 1 . . . . . . . . . Part Schematics Acquired . | . . . . . . . . . . . . . . . . . . Parts Damaged . | . . . . . . . . . . . . . . . . . . Bothacking | -11 -10 -10 -10 -9 -8 -7 -6 -5 -5 -5 -5 -4 -4 -4 -3 -2 -2 ------------ Run | Yrd Mat Min Exi Min Mat Fac Fac Fac Ext Cet Arc Fac Upp Upp Res Res Tes Used RIF Installer . | . . . . . . . . . . . . . . . . . . Robots Hacked . | . . . . . . . . . . . . . . . . . . Non-combat . | . . . . . . . . . . . . . . . . . . Combat . | . . . . . . . . . . . . . . . . . . Robot Hacks Applied . | . . . . . . . . . . . . . . . . . . Relay Couplers Released . | . . . . . . . . . . . . . . . . . . Fabnet Peak Effective % . | . . . . . . . . . . . . . . . . . . Robots Rewired 16 | . . . . . . . . 1 14 . . 1 . . . . . Allies Hacked . | . . . . . . . . . . . . . . . . . . Hacks Repelled . | . . . . . . . . . . . . . . . . . . Allies | -11 -10 -10 -10 -9 -8 -7 -6 -5 -5 -5 -5 -4 -4 -4 -3 -2 -2 -------- Run | Yrd Mat Min Exi Min Mat Fac Fac Fac Ext Cet Arc Fac Upp Upp Res Res Tes Total Allies 26 | . . . . . . . . 1 19 5 . 1 . . . . . Largest Group 12 | . . . . . . . . 1 12 11 11 9 1 . . . . Highest-Rated Group 766 | . . . . . . . . 30 399 766 766 606 28 . . . . Highest-Rated Ally 159 | . . . . . . . . 30 159 159 159 96 28 . . . . Total Orders 2 | . . . . . . . . . . . 2 . . . . . . STAY 1 | . . . . . . . . . . . 1 . . . . . . FOLLOW 1 | . . . . . . . . . . . 1 . . . . . . Ally Attacks 342 | . . . . . . . . 1 184 35 24 96 2 . . . . Total Damage 8261 | . . . . . . . . 62 3066 790 839 3504 . . . . . Kills 57 | . . . . . . . . 1 22 4 4 26 . . . . . Allies Corrupted . | . . . . . . . . . . . . . . . . . . Allies Melted 1 | . . . . . . . . . . . . 1 . . . . . Intel | -11 -10 -10 -10 -9 -8 -7 -6 -5 -5 -5 -5 -4 -4 -4 -3 -2 -2 ------- Run | Yrd Mat Min Exi Min Mat Fac Fac Fac Ext Cet Arc Fac Upp Upp Res Res Tes Active Infowar (turns) 7930 | . . . . . 426 1711 998 324 1061 . . 1028 1775 354 253 . . Sensors 4887 | . . . . . . 1509 998 324 993 . . 919 144 . . . . Terrain 2956 | . . . . . 405 963 998 324 266 . . . . . . . . Traps 4871 | . . . . . . 1163 998 266 . . . 319 1518 354 253 . . Decoding 1372 | . . . . . . . . . . . . . 1372 . . . . Cloaking 703 | . . . . . 21 . . 313 142 . . . 227 . . . . Robot Analysis Total 2 | . . . . . . 1 . . 1 . . . . . . . . Derelict Logs Recovered 5 | . . 1 . 2 . . . . . . . . 1 1 . . . Drone Launches . | . . . . . . . . . . . . . . . . . . Drone Recoveries . | . . . . . . . . . . . . . . . . . . Exploration | -11 -10 -10 -10 -9 -8 -7 -6 -5 -5 -5 -5 -4 -4 -4 -3 -2 -2 ------------- Run | Yrd Mat Min Exi Min Mat Fac Fac Fac Ext Cet Arc Fac Upp Upp Res Res Tes Turns Passed 13308 | 58 185 358 317 382 1843 1935 998 324 1801 339 417 1102 1775 354 759 70 291 Spaces Moved 8017 | 42 103 237 258 307 910 920 566 200 902 105 159 605 934 218 1032 138 381 Core 437 | 1 . . . . . 6 . . . . . . . . 238 3 189 Treads 1157 | . . . . . 133 . . . . . . . 795 218 11 . . Legs 5558 | 41 103 237 258 307 777 914 566 200 902 105 159 601 139 . 249 . . Wheels 4 | . . . . . . . . . . . . 4 . . . . . Hover . | . . . . . . . . . . . . . . . . . . Flight 861 | . . . . . . . . . . . . . . . 534 135 192 Fastest Speed 40 | 50 120 120 120 120 120 120 120 120 120 120 120 120 120 160 40 40 45 Average Speed 118 | 118 120 120 120 120 123 151 130 120 120 120 120 134 154 160 62 40 47 Slowest Speed 260 | 120 120 120 120 120 190 250 190 120 120 120 120 190 260 160 160 50 50 Overloaded Moves . | . . . . . . . . . . . . . . . . . . Propulsion Burnouts . | . . . . . . . . . . . . . . . . . . Robots Hopped 7 | . . . . . . . . . . . . . . . 4 1 2 Potential Cave-ins . | . . . . . . . . . . . . . . . . . . Cave-ins Triggered . | . . . . . . . . . . . . . . . . . . Exploration Rate (%) 40 | 4 14 54 60 73 62 26 19 6 87 53 74 10 85 26 30 3 43 Regions Visited 17 Branch Regions 9 Pre-discovered Areas 1 | . . . . 1 . . . . . . . . . . . . . Known Exits Taken 12 | . . . . . 1 1 1 1 1 1 1 1 1 1 1 1 . Unknown Exits Taken 5 | 1 1 1 1 1 . . . . . . . . . . . . . Scrap Searched 6 | . . 3 . 1 . . . . . . . . 2 . . . . Spaces Dug 43 | . . . . . 7 19 9 2 . . . . 1 . 3 . 2 Terrain Destroyed 356 | . . . . . 60 37 9 2 . . 23 11 68 1 143 . 2 Melee 41 | . . . . . 7 19 9 2 . . . . 1 . 1 . 2 Projectile 46 | . . . . . 6 . . . . . 23 11 3 1 2 . . AOE 269 | . . . . . 47 18 . . . . . . 64 . 140 . . Terrain Rammed . | . . . . . . . . . . . . . . . . . . Walls Destroyed . | . . . . . . . . . . . . . . . . . . Machines Disabled . | . . . . . . . . . . . . . . . . . . Actions | -11 -10 -10 -10 -9 -8 -7 -6 -5 -5 -5 -5 -4 -4 -4 -3 -2 -2 --------- Run | Yrd Mat Min Exi Min Mat Fac Fac Fac Ext Cet Arc Fac Upp Upp Res Res Tes Total 10997 | 47 126 270 265 321 1506 1356 792 261 1477 303 301 844 1172 219 1119 151 467 Wait 2009 | . . 7 . 7 481 305 158 35 358 176 79 171 130 . 33 13 56 Move 7986 | 41 102 236 257 306 909 919 565 199 901 104 158 604 933 217 1023 135 377 Hop 7 | . . . . . . . . . . . . . . . 4 1 2 Pick Up 83 | . 4 3 4 1 10 14 10 2 4 1 2 10 7 . 7 1 3 Fast Attach 92 | 6 1 . . . 10 15 8 3 12 6 7 11 6 . 5 . 2 Attach 45 | . . . . . 6 8 2 1 3 . . 6 9 . 9 . 1 Detach 22 | . . . . . 3 2 1 . 1 . 4 2 5 . 4 . . Swap 67 | . . 2 2 2 6 19 10 2 14 1 1 5 3 . . . . Drop 109 | . . 1 2 4 14 13 17 3 17 6 7 7 9 . 5 1 3 Fire 334 | . 19 13 . 1 60 22 10 9 85 9 43 23 20 2 18 . . Melee 143 | . . 8 . . 7 39 11 5 4 . . . 50 . 5 . 14 Ram 7 | . . . . . . . . . . . . . . . 4 . 3 Kick . | . . . . . . . . . . . . . . . . . . Crush 2 | . . . . . . . . . . . . . . . 2 . . Escape Stasis 10 | . . . . . . . . . 4 . . . . . . . 6 Rewire 81 | . . . . . . . . 2 74 . . 5 . . . . . Trap . | . . . . . . . . . . . . . . . . . . Miscellaneous . | . . . . . . . . . . . . . . . . . . Route ------- -11/Scrapyard -10/Materials -10/Mines -10/Exiles -9/Mines -8/Materials (discovered 2 exits: *Fac x2) -7/Factory (discovered 2 exits: *Fac / Low) -6/Factory (discovered 2 exits: *Fac / *Low) -5/Factory -5/Extension (discovered 2 exits: *Fac / *Cet) -5/Cetus -5/Archives (discovered 3 exits: *Fac / [*Hub x2]) -4/Factory -4/Upper Caves -4/Upper Caves -3/Research -2/Research (discovered 2 exits: *Tes x2) -2/Testing History --------- Turn | Location | Event 2 | -11/Scrapyard | Met Revision 17 5 | -11/Scrapyard | Discovered new exit (range 16) 59 | -11/Scrapyard | Entered Materials 74 | -10/Materials | Discovered new exit (range 3) 244 | -10/Materials | Entered Mines 312 | -10/Mines | Build established: Mutant 332 | -10/Mines | Learned 2 Materials zone layouts 454 | -10/Mines | Excavation squad dispatched 454 | -10/Mines | A large section of the Mines collapsed 550 | -10/Mines | A weapon hastily lodged in a ceiling crevice suddenly fell to the ground 597 | -10/Mines | Deemed a non-threat by the Exiles lab entrance 597 | -10/Mines | Discovered new exit (range 5) 602 | -10/Mines | Entered Exiles 631 | -10/Exiles | Met 8R-AWN 653 | -10/Exiles | Met EX-HEX 689 | -10/Exiles | Met EX-BIN 703 | -10/Exiles | Aligned with FarCom system 704 | -10/Exiles | Given EX-Vault access code 732 | -10/Exiles | Opened EX-Vault 740 | -10/Exiles | Found Skeleton Box 745 | -10/Exiles | Found Field Lobotomy Kit 782 | -10/Exiles | Found Cloak of Protection 834 | -10/Exiles | Warned to stay clear of 0b10 Research branches 865 | -10/Exiles | Met EX-DEC 908 | -10/Exiles | Discovered new exit (range 10) 919 | -10/Exiles | Stole three prototypes: Cloak of Protection, Skeleton Box, Field Lobotomy Kit 919 | -10/Exiles | Entered Mines 965 | -9/Mines | Learned Materials stockpile data 1056 | -9/Mines | Build established: Scavenger-Mutant 1141 | -9/Mines | Met a Derelict who couldn't figure out how to use a Trap Extractor 1293 | -9/Mines | Discovered new exit (range 7) 1294 | -9/Mines | Learned location of Storage (-7) 1301 | -9/Mines | Entered Materials 1301 | -8/Materials | Evolved 4 slots: Propulsion x1, Utility x3 1627 | -8/Materials | Build established: Mutant 1769 | -8/Materials | Garrison activated, responded to threat 1812 | -8/Materials | Destroyed 7 combat bots 1896 | -8/Materials | Discovered new exit (range 4) 2013 | -8/Materials | Repaired Gauss Rifle 2109 | -8/Materials | Build established: Scavenger-Mutant 2927 | -8/Materials | Discovered new exit (range 14) 3038 | -8/Materials | Build established: Scavenger-Skirmisher 3060 | -8/Materials | Identified exit to Factory 3144 | -8/Materials | Entered Factory 3144 | -7/Factory | Evolved 2 slots: Utility x2 3145 | -7/Factory | Identified exit to Lower Caves 3146 | -7/Factory | FarCom data flow suspended 3737 | -7/Factory | Repaired Imp. Cryofiber Web 3790 | -7/Factory | Repaired Hvy. Rocket Launcher 3829 | -7/Factory | Repaired Imp. Terrain Scanner 3995 | -7/Factory | Lost 8 parts (1p3n2u2w) 4025 | -7/Factory | Core integrity fell below 50% 4644 | -7/Factory | Build established: Hacker-Assassin 4899 | -7/Factory | Discovered new exit (range 9) 4916 | -7/Factory | Identified exit to Factory 5047 | -7/Factory | Build established: Hacker-Skirmisher 5079 | -7/Factory | Entered another Factory area 5079 | -6/Factory | Evolved 2 slots: Propulsion x1, Utility x1 5157 | -6/Factory | Discovered new exit (range 8) 5175 | -6/Factory | Identified exit to Lower Caves 5769 | -6/Factory | Repaired Hvy. Deuterium Engine 5798 | -6/Factory | Build established: Hacker-Assassin 5988 | -6/Factory | Discovered new exit (range 7) 6006 | -6/Factory | Identified exit to Factory 6077 | -6/Factory | Entered another Factory area 6077 | -5/Factory | Evolved 2 slots: Power x1, Utility x1 6374 | -5/Factory | Garrison activated, responded to threat 6376 | -5/Factory | Discovered new exit (range 13) 6400 | -5/Factory | Identified exit to Extension 6401 | -5/Factory | Entered Extension 6401 | -5/Extension | Accompanied by 1 ally 6561 | -5/Extension | Central database locked down 6844 | -5/Extension | Remotely autohacked Sealed Heavy Doors 6845 | -5/Extension | Rescued a captive Derelict 6848 | -5/Extension | Rescued a captive Derelict 7209 | -5/Extension | Build established: Commander-Mutant 7287 | -5/Extension | Spotted B-75 Beast 7312 | -5/Extension | Allies destroyed B-75 Beast 7336 | -5/Extension | Spotted B-75 Beast 7347 | -5/Extension | Allies destroyed B-75 Beast 7381 | -5/Extension | Lost 4 allies 7731 | -5/Extension | Build established: Hacker-Mutant 7995 | -5/Extension | Remotely autohacked Sealed Heavy Doors 7996 | -5/Extension | Rescued a captive Derelict 7996 | -5/Extension | Rescued a captive Derelict 8045 | -5/Extension | Remotely autohacked Sealed Heavy Doors 8046 | -5/Extension | Rescued A7 8120 | -5/Extension | Discovered new exit (range 10) 8121 | -5/Extension | Discovered new exit (range 6) 8164 | -5/Extension | Identified exit to Cetus 8202 | -5/Extension | Entered Cetus 8202 | -5/Cetus | Accompanied by 10 allies (A7) 8207 | -5/Cetus | Acquired a Cetus Manufacturing Module code from A7 8225 | -5/Cetus | Spotted Cetus Guard 8225 | -5/Cetus | Spotted Cetus Guard 8228 | -5/Cetus | Spotted Cetus Guard 8228 | -5/Cetus | Spotted Cetus Guard 8239 | -5/Cetus | Allies destroyed Cetus Guard 8250 | -5/Cetus | Allies destroyed Cetus Guard 8252 | -5/Cetus | Destroyed Cetus Guard 8254 | -5/Cetus | Allies destroyed Cetus Guard 8277 | -5/Cetus | Lost 3 allies 8295 | -5/Cetus | System corruption reached 10% 8328 | -5/Cetus | Remotely autohacked Sealed Heavy Doors 8328 | -5/Cetus | Started Cetus Manufacturing Module 8353 | -5/Cetus | Manufactured an Enhanced Grunt 8378 | -5/Cetus | Manufactured an Enhanced Grunt 8403 | -5/Cetus | Manufactured an Enhanced Grunt 8428 | -5/Cetus | Manufactured an Enhanced Grunt 8453 | -5/Cetus | Manufactured an Enhanced Grunt 8491 | -5/Cetus | Discovered new exit (range 16) 8508 | -5/Cetus | Identified exit to Archives 8541 | -5/Cetus | Entered Archives 8541 | -5/Archives | Accompanied by 11 allies (A7) 8558 | -5/Archives | Build established: Scavenger-Mutant 8612 | -5/Archives | Discovered new exit (range 15) 8847 | -5/Archives | Discovered new exit (range 15) 8913 | -5/Archives | Discovered new exit (range 16) 8930 | -5/Archives | Identified exit to Factory 8958 | -5/Archives | Entered Factory 8958 | -4/Factory | Accompanied by 8 allies 8958 | -4/Factory | Evolved 2 slots: Utility x1, Weapon x1 9012 | -4/Factory | Discovered new exit (range 4) 9016 | -4/Factory | Identified exit to Upper Caves 9040 | -4/Factory | Spotted B-86 Titan 9064 | -4/Factory | Allies destroyed B-86 Titan 9085 | -4/Factory | Lost 3 parts (2n1u) 9346 | -4/Factory | Found Prototype Device 9350 | -4/Factory | Identified Exp. Thermal Shield 9362 | -4/Factory | Lost 4 allies 9692 | -4/Factory | Repaired Broken Quantum Rifle 10060 | -4/Factory | Entered Upper Caves 10060 | -4/Upper Caves | Accompanied by 1 ally 10176 | -4/Upper Caves | Build established: Scavenger-Skirmisher 10734 | -4/Upper Caves | Build established: Hacker-Mutant 11419 | -4/Upper Caves | Ambushed by wild Derelicts 11444 | -4/Upper Caves | System corruption reached 10% 11490 | -4/Upper Caves | Lost 4 parts (1p2u1w) 11691 | -4/Upper Caves | Learned Research security intel 11752 | -4/Upper Caves | Build established: Scavenger-Mutant 11762 | -4/Upper Caves | Encountered a Warlord checkpoint 11829 | -4/Upper Caves | Discovered new exit (range 2) 11832 | -4/Upper Caves | Identified exit to Upper Caves 11835 | -4/Upper Caves | Entered another Upper Caves area 11836 | -4/Upper Caves | Field Lobotomy Kit stolen by Master Thief 11837 | -4/Upper Caves | Encountered a Master Thief 12006 | -4/Upper Caves | Discovered new exit (range 9) 12021 | -4/Upper Caves | Identified exit to Research 12141 | -4/Upper Caves | Learned Research terminal intel 12189 | -4/Upper Caves | Entered Research 12189 | -3/Research | Evolved 2 slots: Utility x2 12191 | -3/Research | Loaded intel: 22 terminal locations 12251 | -3/Research | Found Prototype Processor 12251 | -3/Research | Identified Exp. Signal Interpreter 12441 | -3/Research | Spotted B-86 Titan 12485 | -3/Research | Lost 4 parts (1p1u2w) 12575 | -3/Research | System corruption reached 10% 12597 | -3/Research | Found Prototype Launcher 12597 | -3/Research | Identified Adv. Micro-nuke Launcher 12607 | -3/Research | System corruption reached 30% 12612 | -3/Research | Lost 12 parts (1p4n5u2w) 12633 | -3/Research | Destroyed 8 combat bots 12850 | -3/Research | Build established: Mutant 12877 | -3/Research | Core integrity fell below 50% 12945 | -3/Research | Discovered new exit (range 9) 12948 | -3/Research | Identified exit to Research 12948 | -3/Research | Entered another Research area 12948 | -2/Research | Evolved 2 slots: Propulsion x2 12993 | -2/Research | Identified exit to Testing 13018 | -2/Research | Entered Testing 13157 | -2/Testing | Found Prototype Processor 13200 | -2/Testing | Core integrity fell below 50% 13214 | -2/Testing | Core integrity fell below 20% 13216 | -2/Testing | Found Prototype Leg 13216 | -2/Testing | Identified Myomer Exoskeleton 13241 | -2/Testing | Lost 3 parts (1n1u1w) 13273 | -2/Testing | Spotted Alpha 7 13309 | -2/Testing | Destroyed by P-80 Master with Gamma Rifle Last Messages --------------- 13247_ Triggered Segregator Trap. 13247_ Arcs of energy rise from the floor. 13248_ Slug penetrates Subatomic Condenser. 13251_ Penetrated by Slug. 13254_ Slug penetrates U-05 Engineer. 13254_ U-05 Engineer destroyed. 13254_ Penetrated by Slug. 13265_ ALERT: Live fire test to commence in T-25. 13283_ W-44 Eye sends out distress signal. 13288_ Triggered Alarm Trap. 13288_ An alarm sounds. 13288_ ALERT: Alarm triggered, dispatching investigation squad. 13290_ ALERT: Potential suspicious activity detected, Programmers report to Testing Zone 2K. 13291_ P-80 Master resets A-15 Conveyor, system corruption cleaned. 13309_ Drone sends a signal. Map ----- +----------------------------------------------------+ | ?????????????????????????????????????????????????? | | ?????????????????????????????????????????????????? | | ?????????????????????????????????????????????????? | | ?????????????????????????????????????????????????? | | ?????????????????????????????????????????????????? | | ?????????????????????????????????????????????????? | | ?????????????????????????????????????????????????? | | ?????????????????????????????????????????????????? | | ?????????????????????????????????????????????????? | | ?????????????????????????????????????????????????? | | ?????????????????????????????????????????????????? | | ?????????????????????????????????????????????????? | | ?????????????????????????????????????????????????? | | ?????????????????????????????????????????????????? | | ?????????????????????????????????????????????????? | | ?????????????????????????????????????????????????? | | ???????????????????????????????????????????####+## | | ????????????????????????????????##""""##???# | | ????????????????????????????????#" "#???# | | ????????????????????????????????# """#???# | | ?????????????????????????????#### "#???# | | ?????????????????????????????#""#?? #???# | | ????????????????????????????##T"#####+###### | | ????????????????????????????# p | | ?????????????????############ p | | ?????????? kk c@ p c | | ?????????????????############ A | | ????????????????????????????####+########### #"T## | | ??????????????????????????????T ????????# #""## | | ????????????????????????????# ??????# ##### | | ????????????????????????????# #????#+#???# | | ????????????????????????????# [[[ #??????????# | | ????????????????????????????# [[[ """ ## ????????# | | ????????????????????????????# [[ """ ## ??????# | | ##?###########??????????????# """ ## ????# | | ? #??????????????# ## ] ??# | | ?? #??????????????########???# ] # | | """ """ #?????????????????????????# + | | " " """" #?????????????????????????# # | | "" """ #?????????????????????????########??# | | #??????????????######???????????????# | | #??????????????+ +???????????????# | | #??????????????# #???????????????# | | #??????????????# #????????######## | | #??????????????# #????????# | | #??????????????+ #????????# | | ##+####/######??????????????# #????????# """ " | | #??????????????????+ +????????# """ " | | ##### #??????????????????# #????????# """ " | | #???# #??????????????????# #????????# | +----------------------------------------------------+ Best States ------------- Heat Dissipation 81 Energy Generation 45 Energy Capacity 750 Matter Stores 300 Matter Capacity 300 Sight Range 16 Robot Scan Range 18 Terrain Scan Range 16 Terrain Scan Density 110 Cloak Strength 5 Base Temperature (-) 150 Armor Coverage 450 Resistance: TH 30 Weapon Cycling 15 Evasion (%) 62 Recoil Reduction 4 Offensive Hacking 24 Defensive Hacking 24 Item Schematics ----------------- None Robot Schematics ------------------ P-70 Sage | -5/Extension | Hacked Fabricated ------------ Nothing Repaired ---------- Gauss Rifle | 14% | -8/Materials Imp. Cryofiber Web | 25% | -7/Factory Hvy. Rocket Launcher | 24% | -7/Factory Imp. Terrain Scanner | 63% | -7/Factory Hvy. Deuterium Engine | 52% | -6/Factory Quantum Rifle | 20% | -4/Factory | Broken Studied --------- Gatling Laser | -5/Factory | Hacked Alien Tech Used ----------------- None Achievements -------------- None Challenges ------------ None Game ------ Seed TripodTiamatJets Manual? 0 Play Time 01:42:06 Cumulative 160.1 hours Start 2026.09.23 @ 08:01:03 End 2026.09.23 @ 09:44:44 Sessions 1 Manual Loads 0 Difficulty Rogue Special Mode None Game No. 177 Rogue 177 Adventurer 0 Explorer 0 Win Type - Total 0 Types 0/0/0/0/0/0/0/0/0/0 Lore% 59 Gallery% 61 Achievement% 47 Wizard Run 0 Options --------- Layout 1 ASCII 0 Keyboard 0 Movement Mouse Keybinds 0 Fullscreen 2 Font 24/Smallcaps Map View 50x35 Zoom Use 0% Tactical HUD 1 Map Filters NONE Filters NONE Steam 1 RUN: 7ce6a928-aa90-4829-9c72-6dd07a4add80